Cogmind - Beta 13 X1 @@@ ROGUE MODE // 2023.07.11 @ 10:33:38 Player: Kyzrati Result: Destroyed by Y-54 Guardian with Flak Gun Performance ------------- Evolutions (0) 0 Regions Visited (3) 600 Robots Destroyed (33) 165 Value Destroyed (841) 841 Prototype IDs (10) 200 Alien Tech Used (0) 0 Bonus (0) 0 TOTAL SCORE: 1806 Bonus ------- None Cogmind --------- Core Integrity 0/250 Matter 233/300 Energy 74/100 System Corruption 1% Temperature Cool (61) Movement Treading (160) Location -7/Recycling Parts ------- > --- POWER (1+1) ------ Subdweller Power Source > --- PROPULSION (2+1) - Improved Treads (+) Improved Treads Improved Treads > --- UTILITY (2) ------ Medium Storage Unit Rainbow Chip > --- WEAPON (2) ------- Subdweller Shrapnel Launcher Subdweller Shrapnel Launcher > --- INVENTORY (10) --- Seismic Detector Core Shielding Improved Medium Armor Plating Recalibrator Shotgun Subdweller Machine Gun Subdweller Machine Gun Mini Grenade Launcher Shrapnel Trap Peak State ------------ > --- POWER ------------ Subdweller Power Source > --- PROPULSION ------- Improved Treads Improved Treads Improved Treads > --- UTILITY ---------- Medium Storage Unit Structural Scanner Rainbow Chip > --- WEAPON ----------- Subdweller Machine Gun Barrage Gun Battle Cannon > --- INVENTORY -------- Core Shielding Core Shielding Improved Medium Armor Plating Recalibrator Shotgun Subdweller Machine Gun Mini Grenade Launcher Subdweller Shrapnel Launcher Subdweller Shrapnel Launcher Shrapnel Trap [Rating: 32] Favorites ----------- Power Ion Engine Engine Ion Engine Propulsion Improved Treads Treads Improved Treads Utility Medium Storage Unit Device Structural Scanner Storage Medium Storage Unit Processor Rainbow Chip Protection Core Shielding Weapon Light Cannon Energy Gun Subdweller Laser Ballistic Gun Subdweller Machine Gun Ballistic Cannon Light Cannon Launcher Mini Grenade Launcher Build | -11 -10 -10 -7 ------- Run | Jun Mat Sub Rec Slots Evolved . | . . . . Power . | . . . . Propulsion . | . . . . Utility . | . . . . Weapon . | . . . . Parts Attached 48 | 7 15 24 2 Power 6 | 2 1 3 . Engine 6 | 2 1 3 . Core . | . . . . Reactor . | . . . . Propulsion 10 | 2 4 4 . Treads 10 | 2 4 4 . Leg . | . . . . Wheel . | . . . . Hover . | . . . . Flight . | . . . . Utility 11 | 1 3 7 . Device 5 | . 1 4 . Storage 2 | 1 1 . . Processor 1 | . . 1 . Hackware . | . . . . Protection 3 | . 1 2 . Artifact . | . . . . Weapon 21 | 2 7 10 2 Energy Gun 3 | 2 . 1 . Energy Cannon . | . . . . Ballistic Gun 5 | . . 5 . Ballistic Cannon 7 | . 5 2 . Launcher 6 | . 2 2 2 Special Weapon . | . . . . Impact Weapon . | . . . . Slashing Weapon . | . . . . Piercing Weapon . | . . . . Special Melee Weapon . | . . . . Unidentified Prototypes . | . . . . Parts Lost 7 | . . 4 3 Power 1 | . . 1 . Propulsion 1 | . . 1 . Utility 1 | . . . 1 Weapon 4 | . . 2 2 Highest Loss Streak 3 | . . 3 3 To Critical Strikes . | . . . . Average Slot Usage (%) 97 | . 99 97 89 Engine 12 | . 14 12 9 Treads 27 | . 28 27 27 Device 9 | . 10 9 8 Storage 13 | . 14 13 9 Processor 1 | . . 1 9 Protection 3 | . 3 4 . Energy Gun 4 | . . 6 . Ballistic Gun 10 | . . 13 18 Ballistic Cannon 10 | . 19 6 9 Launcher 2 | . 8 . . Naked Turns . | . . . . Heaviest Build 26 | 12 22 26 26 Greatest Support 69 | 40 46 69 69 Greatest Overweight (x) 3 | 3 . 1 . Average Overweight (x) . | . . . . Largest Inventory Capacity 10 | 8 10 10 10 Average Capacity 9 | 7 8 10 10 Most Carried 10 | 4 10 10 10 Average Carried 8 | 2 7 9 9 Final Capacity 10 | 8 10 10 10 Final Carried 10 | 4 10 10 9 Class Distribution -------------------- 82% | Mutant 17% | Derelict-Mutant Dominant Class ---------------- Mutant | -10/Materials Mutant | -10/Subcaves Derelict-Mutant | -7/Recycling Resources | -11 -10 -10 -7 ----------- Run | Jun Mat Sub Rec Matter Collected 1200 | 219 409 572 . Remotely 409 | . 409 . . Salvage Created 935 | . 485 442 8 Parts 66 | . 33 33 . Haulers Intercepted 1 | . 1 . . Recyclers Shooed 3 | . 3 . . Parts Field Recycled . | . . . . Retrieved Matter . | . . . . Parts Self-Destructed 17 | . . 17 . Prevented . | . . . . Kills | -11 -10 -10 -7 ------- Run | Jun Mat Sub Rec Combat Hostiles Destroyed 29 | . 13 15 1 Guns 5 | . . 5 . Cannons 11 | . 6 5 . AOE 13 | . 7 5 1 Classes Destroyed 6 | . 4 2 . Hauler 1 | . 1 . . Recycler 3 | . 3 . . Swarmer 11 | . 6 4 1 Grunt 9 | . 7 2 . Sentry 1 | . . 1 . Subdweller 8 | . . 8 . Best Kill Streak 4 | . 3 4 1 Combat Bots Only 4 | . 3 4 1 Max Kills in Single Turn 3 | . 3 2 1 Gunslinging . | . . . . Exploded 3 | . 3 2 1 Melee . | . . . . Uniques/NPCs Destroyed . | . . . . Combat | -11 -10 -10 -7 -------- Run | Jun Mat Sub Rec Damage Taken 1604 | . 200 821 583 Core 250 | . 9 131 110 Absorbed by Shields . | . . . . Redirected to Shielding 8 | . . 8 . Core Remaining (%) 100 | 100 . . . Volleys Fired 94 | 1 35 55 3 Largest 3 | 2 2 2 3 Hottest 97 | 80 70 95 97 Shots Fired 148 | 2 58 80 8 Gun 49 | 2 . 43 4 Cannon 84 | . 51 31 2 Launcher 15 | . 7 6 2 Special . | . . . . Kinetic 114 | . 51 55 8 Thermal 21 | 2 . 19 . Explosive 13 | . 7 6 . Electromagnetic . | . . . . Robot Hit Streak 9 | 2 9 6 7 Robot Miss Streak 5 | . 5 3 1 Penetration Max . | . . . . Secondary Targets . | . . . . Shots Hit Robots 67 | 2 29 30 6 Core Hits 47 | . 19 24 4 Critical Kills . | . . . . Critical Parts Destroyed . | . . . . Critical Strikes 2 | . 1 1 . Blast 2 | . 1 1 . Melee Attacks . | . . . . Impact . | . . . . Slashing . | . . . . Piercing . | . . . . Sneak Attacks . | . . . . Combat Hostiles . | . . . . Follow-up Attacks . | . . . . Damage Inflicted 2184 | 22 821 914 427 Guns 387 | 22 . 307 58 Cannons 775 | . 504 234 37 Explosions 1022 | . 317 373 332 Melee . | . . . . Ramming . | . . . . Kinetic 1389 | . 504 458 427 Thermal 105 | 22 . 83 . Explosive 690 | . 317 373 . Electromagnetic . | . . . . Impact . | . . . . Slashing . | . . . . Piercing . | . . . . Highest Corruption 1 | . 1 1 1 Average Corruption 1 | . 1 1 1 Corruption Purged . | . . . . Corruption Blocked . | . . . . Effects 34 | . 4 29 1 Message Errors 10 | . 1 9 . Matter Fused 6 | . . 6 . Heat Flow Errors 5 | . . 5 . Energy Discharges 5 | . 1 4 . Data Loss (minor) 4 | . 2 2 . Misfires 3 | . . 3 . Alerts 1 | . . . 1 Overload Shots . | . . . . Overflow Damage 35 | . 35 . . Projectiles 14 | . 14 . . Explosions 21 | . 21 . . Melee . | . . . . Knockbacks 5 | . 3 2 . Impact . | . . . . Kinetic 5 | . 3 2 . Secondary . | . . . . Self-Inflicted Damage 56 | . . 20 36 Shots 4 | . . 2 2 Rammed . | . . . . Targets Rammed . | . . . . Kicked . | . . . . Crushed . | . . . . Highest Temperature 175 | 18 45 175 78 Average Temperature 29 | 12 15 74 43 Received Heat Transfer 237 | . 42 69 126 Siege Activations . | . . . . Robots Corrupted . | . . . . Combat Hostiles . | . . . . Parts Fried . | . . . . Impact Corruptions . | . . . . Robots Melted . | . . . . Combat Hostiles . | . . . . Parts Melted . | . . . . Heat Transferred 150 | 50 . 100 . Parts Sabotaged . | . . . . Parts Stolen . | . . . . Parts Stripped . | . . . . Power Chain Reactions . | . . . . Missiles Intercepted . | . . . . Alert | -11 -10 -10 -7 ------- Run | Jun Mat Sub Rec Peak Influence 233 | . 233 . 40 Initial 14 | . . . 14 Average 81 | . 108 . 9 Maximum Alert Level 1 | . 1 . . Low Security (%) 93 | 100 91 . 100 Level 1 6 | . 8 . . Level 2 . | . . . . Level 3 . | . . . . Level 4 . | . . . . Level 5 . | . . . . High Security . | . . . . Max Security . | . . . . Squads Dispatched 3 | . 3 . . Investigation 1 | . 1 . . Extermination . | . . . . Reinforcement 2 | . 2 . . Assault . | . . . . Garrison . | . . . . Intercept . | . . . . Searches Triggered . | . . . . Construction Impeded . | . . . . Haulers Reinforced . | . . . . Active Scanning Responses . | . . . . Cargo Convoy Interrupts . | . . . . Stealth | -11 -10 -10 -7 --------- Run | Jun Mat Sub Rec Distress Signals . | . . . . Communications Jammed . | . . . . Distress Signals . | . . . . Times Spotted 48 | . 24 19 5 Peak Tracking Total 5 | . 3 4 5 Tactical Retreats 6 | . 2 4 . Traps | -11 -10 -10 -7 ------- Run | Jun Mat Sub Rec Traps Triggered 8 | . 3 5 . Indirectly . | . . . . Trap Hack Attempts . | . . . . Triggered . | . . . . Disarmed . | . . . . Reprogrammed . | . . . . Reused . | . . . . Traps Extracted . | . . . . Installed . | . . . . Triggered . | . . . . Most Traps Carried 1 | . . 1 1 Machines | -11 -10 -10 -7 ---------- Run | Jun Mat Sub Rec Machines Disabled 2 | . 1 1 . Max in Single Turn 1 | . 1 1 . Machines Repaired . | . . . . Machines Sabotaged . | . . . . Overloaded Fab Kills . | . . . . Hacking | -11 -10 -10 -7 --------- Run | Jun Mat Sub Rec Machines Accessed 3 | . 1 2 . Terminals 1 | . 1 . . Fabricators . | . . . . Repair Stations . | . . . . Recycling Units . | . . . . Scanalyzers . | . . . . Garrison Access . | . . . . Total Hacks 12 | . 2 10 . Successful 11 | . 1 10 . Failed 1 | . 1 . . Catastrophic . | . . . . Database Lockouts . | . . . . Manual . | . . . . Terminals 2 | . 2 . . Fabricators . | . . . . Repair Stations . | . . . . Recycling Units . | . . . . Scanalyzers . | . . . . Garrison Access . | . . . . Terminal Hacks 11 | . 1 10 . Record 9 | . . 9 . Hauler Manifests 1 | . 1 . . Derelict Proto ID Bank 1 | . . 1 . Fabricator Hacks . | . . . . Repair Station Hacks . | . . . . Recycling Unit Hacks . | . . . . Scanalyzer . | . . . . Garrison Access Hacks . | . . . . Unauthorized Hacks . | . . . . Terminals . | . . . . Fabricators . | . . . . Repair Stations . | . . . . Recycling Units . | . . . . Scanalyzers . | . . . . Garrison Access . | . . . . Data Cores Recovered . | . . . . Used . | . . . . Hacking Detections 1 | . 1 . . Full Trace Events . | . . . . Feedback Events . | . . . . Feedback Blocked . | . . . . Robot Schematics Acquired . | . . . . Robots Built . | . . . . Authchips . | . . . . Time . | . . . . Total Robot Build Rating . | . . . . Part Schematics Acquired . | . . . . Parts Built . | . . . . Authchips . | . . . . Time . | . . . . Total Part Build Rating . | . . . . Parts Repaired . | . . . . Time . | . . . . Parts Recycled . | . . . . Recycled Matter . | . . . . Retrieved Matter . | . . . . Retrieved Components . | . . . . Parts Scanalyzed . | . . . . Part Schematics Acquired . | . . . . Parts Damaged . | . . . . Bothacking | -11 -10 -10 -7 ------------ Run | Jun Mat Sub Rec Used RIF Installer . | . . . . Robots Hacked . | . . . . Non-combat . | . . . . Combat . | . . . . Robot Hacks Applied . | . . . . Relay Couplers Released . | . . . . Fabnet Peak Effective % . | . . . . Robots Rewired . | . . . . Allies Hacked . | . . . . Hacks Repelled . | . . . . Allies | -11 -10 -10 -7 -------- Run | Jun Mat Sub Rec Total Allies . | . . . . Largest Group . | . . . . Highest-Rated Group . | . . . . Highest-Rated Ally . | . . . . Total Orders . | . . . . Ally Attacks . | . . . . Total Damage . | . . . . Kills . | . . . . Allies Corrupted . | . . . . Allies Melted . | . . . . Intel | -11 -10 -10 -7 ------- Run | Jun Mat Sub Rec Robot Analysis Total . | . . . . Derelict Logs Recovered 1 | . . 1 . Drone Launches . | . . . . Drone Recoveries . | . . . . Exploration | -11 -10 -10 -7 ------------- Run | Jun Mat Sub Rec Turns Passed 5955 | 78 1767 3526 584 Spaces Moved 3433 | 43 976 2062 352 Core 12 | 12 . . . Treads 3421 | 31 976 2062 352 Legs . | . . . . Wheels . | . . . . Hover . | . . . . Flight . | . . . . Fastest Speed 50 | 50 160 160 160 Average Speed 159 | 145 160 160 160 Slowest Speed 240 | 200 160 240 160 Overloaded Moves . | . . . . Propulsion Burnouts . | . . . . Robots Hopped . | . . . . Cave-ins Triggered . | . . . . Exploration Rate (%) 65 | 5 94 81 82 Regions Visited 3 Branch Regions 2 Pre-discovered Areas 2 | . . 2 . Known Exits Taken . | . . . . Unknown Exits Taken 3 | 1 1 1 . Scrap Searched 17 | . . 17 . Spaces Dug 19 | . . 19 . Terrain Destroyed 126 | . 41 50 35 Melee . | . . . . Projectile 3 | . . 3 . AOE 123 | . 41 47 35 Terrain Rammed . | . . . . Walls Destroyed . | . . . . Machines Disabled . | . . . . Actions | -11 -10 -10 -7 --------- Run | Jun Mat Sub Rec Total 3740 | 53 1126 2193 368 Wait 116 | . 77 34 5 Move 3430 | 42 975 2061 352 Hop . | . . . . Pick Up 21 | 3 9 6 3 Fast Attach 20 | 6 4 10 . Attach 5 | . . 4 1 Detach 5 | . 2 3 . Swap 23 | 1 11 10 1 Drop 26 | . 13 10 3 Fire 94 | 1 35 55 3 Melee . | . . . . Ram . | . . . . Kick . | . . . . Crush . | . . . . Escape Stasis . | . . . . Rewire . | . . . . Trap . | . . . . Miscellaneous . | . . . . Route ------- -11/Junkyard -10/Materials (discovered 6 exits: [*Mat x3] / [*Min x2] / *Sub) -10/Subcaves (discovered 3 exits: [*Mat] / [*Mat] / [*Rec]) -7/Recycling History --------- Turn | Location | Event 28 | -11/Junkyard | Discovered new exit (range 15) 79 | -11/Junkyard | Entered Materials 305 | -10/Materials | Build established: Mutant 426 | -10/Materials | Discovered new exit (range 4) 522 | -10/Materials | Discovered new exit (range 16) 762 | -10/Materials | Discovered new exit (range 8) 1100 | -10/Materials | Discovered new exit (range 6) 1322 | -10/Materials | Discovered new exit (range 4) 1378 | -10/Materials | Discovered new exit (range 6) 1846 | -10/Materials | Entered Subcaves 1859 | -10/Subcaves | Learned location of Zion (-6) 1888 | -10/Subcaves | Shifting Twisted Machinery released Sub. Shrapnel Launcher 2104 | -10/Subcaves | Met a Zionite searching for "candidates" 2353 | -10/Subcaves | A swath of the cavern ceiling suddenly collapsed 2474 | -10/Subcaves | Visited Clippyterm 2497 | -10/Subcaves | Discovered new exit (range 12) 2856 | -10/Subcaves | Discovered new exit (range 7) 2949 | -10/Subcaves | A swath of the cavern ceiling suddenly collapsed 3067 | -10/Subcaves | Discovered new exit (range 9) 3075 | -10/Subcaves | Lost 3 parts (1p2w) 3790 | -10/Subcaves | Shifting Twisted Machinery released Sub. Machine Gun 3794 | -10/Subcaves | Shifting Twisted Machinery released Sub. Monowheel 4001 | -10/Subcaves | Disturbed a concealed Subdweller 4451 | -10/Subcaves | Disturbed a concealed Subdweller 4780 | -10/Subcaves | Visited 4L-MR0's lab 4801 | -10/Subcaves | Found Rainbow Chip 4803 | -10/Subcaves | Attached Rainbow Chip, gained temporary slots: Power, Propulsion, Utility, Weapon 5019 | -10/Subcaves | Core integrity fell below 50% 5070 | -10/Subcaves | Shifting Twisted Machinery released Sub. Shrapnel Launcher 5198 | -10/Subcaves | Build established: Derelict-Mutant 5372 | -10/Subcaves | Entered Recycling 5952 | -7/Recycling | Core integrity fell below 20% 5956 | -7/Recycling | Destroyed by Y-54 Guardian with Flak Gun Last Messages --------------- A mysterious object appears at your location! LOCATION=UNKNOWN GOAL=ESCAPE 05380_ Dropped Lgt. Cannon. 05383_ Acquired Imp. Medium Armor Plating. 05404_ R-06 Scavenger collects Lgt. Cannon. 05526_ Dropped Sub. Shrapnel Launcher. 05538_ Acquired Recalibrator. 05546_ R-06 Scavenger collects Sub. Shrapnel Launcher. 05597_ System corrupted: IFF burst signal emitted. 05641_ Dropped Core Shielding. 05642_ Acquired Seismic Detector. 05660_ R-06 Scavenger collects Core Shielding. 05943_ Y-54 Guardian springs to life. 05948_ Structural Scanner destroyed. 05950_ Battle Cannon destroyed. 05950_ Temporary Utility slot lost. 05952_ Barrage Gun destroyed. 05952_ Temporary Weapon slot lost. 05954_ S-27 Virus destroyed. Map ----- +----------------------------------------------------+ | + ! #### ####### | | ?????? # ! !#### #####?? | | """ # !/ #### | | +############### """ # ! ####+##+#### | | ] ############# """ # ! !### !## | | / = ############# # ! !!! ### %## | | [! [######### ### ############# ## | | #### # """ ############# ## | | + + + """ ##?????????## ] ## | | #### # """ ##?????????## %## | | #### # ##?????????## % ## | | = #### # ##?????????## % []## | | ] #### # """ ##?????????## ## | | ! #### # """ ##?????????## [/] ## | | #### ### """u ############# ## | | #### ### ######### ############ | | #########+##### # ############ | | ############# ##### + ##?????????? | | ######?????## ##?## # ##?????????? | | ???????????## ##?## # ###????????? | | ????######### ##### ##### + ##????????? | | ??########### ##### ##### # ###????????? | | ??## ###"" # ? ###????????? | | ??## ###############T # ? ##?????????? | | ??## ?? # ############ % ##?#########?????????? | | ?????????????????????###Y@ ##?#########?????????? | | ??????????????????????##; ; #?????????????????? | | ??????????????????????##; #????????????????? | | ??????? ??????????????? % #????????????????? | | ??????? # ???????????? Y p #????????????????? | | ??????? # ??????????? u ; Y #????????????????? | | ??????? + ???????????g! ; #????????????????? | | ??????? # ?????????? Yr; ###???????????????? | | ??????? # ?????????b ; ;####???????????????? | | ?????## # ????????b ;i # ##??????????? | | ####### # ????????=Y !i# # """"" ##??????????? | | ####### # ??????? g i # # """"" ##??????????? | | ##??????######### # """"" ##??????????? | | ################# # ##??????????? | | ################# # """ ##??????????? | | #### # + Y" ##??????????? | | """ #### """ # # """ ##??????????? | | """ #### """"" # # ###?????????? | | """ + """"" # #################????? | | """ #### """"" # #######!!!#########??? | | """ #### """ # ####### #### ####??? | | #### # ##??? | | #### + ! ##??? | | #### # ##??? | | + #######################??? | +----------------------------------------------------+ Best States ------------- Heat Dissipation 25 Energy Generation 15 Energy Capacity 250 Matter Stores 300 Matter Capacity 300 Sight Range 16 Terrain Scan Density 10 Core Shielding 20 Evasion (%) 40 Recoil Reduction 3 Item Schematics ----------------- None Robot Schematics ------------------ None Fabricated ------------ Nothing Alien Tech Used ----------------- None Achievements -------------- None Challenges ------------ None Game ------ Seed AbsorptionHelicalScreen Manual? 0 Play Time 00:48:06 Cumulative 457.8 hours Start 2023.07.11 @ 09:38:37 End 2023.07.11 @ 10:33:38 Sessions 1 Manual Loads 0 Difficulty Rogue Special Mode None Game No. 126 Rogue 126 Adventurer 0 Explorer 0 Win Type - Total 32 Types 24/0/2/2/0/1/1/2/0 Lore% 44 Gallery% 81 Achievement% 85 Wizard Run 0 Options --------- ASCII 0 Keyboard 1 Movement Numpad Keybinds 0 Fullscreen 2 Font 20/SmallcapsGlow Map View 66x50 Tactical HUD 1 Map Filters NONE Filters NONE Steam 1 RUN: 46fca211-810e-4718-9754-4dd2f500e54d